bitfinex-derivatives/quotes_SOLF0:USTF0_20241231
["timestamp","ask_amount","ask_price","bid_price","bid_amount"]
[1735653898283,12.48390135,196.31,196.24,1.4922]
[1735653898583,12.48390135,196.31,196.25,2.5512]
[1735653899688,12.48390135,196.28,196.21,2.5517]
[1735653899877,3.12,196.27,196.21,2.5517]
[1735653901586,3.12,196.27,196.22,2.5516]
[1735653901788,3.12,196.27,196.16,1.5645]
[1735653903390,3.12,196.3,196.19,12.48390135]
[1735653903688,3.12,196.3,196.2,1.4769]
[1735653904295,1.5593,196.31,196.27,2.551]
[1735653904690,3.12,196.3,196.2,1.4769]
[1735653904886,15.60390135,196.33,196.22,12.48390135]
[1735653905088,15.60390135,196.33,196.16,12.08120908]
[1735653905294,12.48390135,196.3,196.18,12.48390135]
[1735653906388,12.48390135,196.3,196.26,2.5511]
[1735653906690,12.48390135,196.3,196.18,12.48390135]
[1735653907183,3.12,196.29,196.15,40.35308378]
[1735653907392,4.6857,196.29,196.15,40.35308378]
[1735653907785,4.6857,196.29,196.23,2.5515]
[1735653910092,4.6857,196.29,196.24,2.5514]
[1735653911091,12.48390135,196.27,196.24,2.5514]
[1735653912494,12.48390135,196.27,196.26,2.5511]
[1735653913194,4.6857,196.29,196.26,2.5511]
[1735653913400,17.16960135,196.29,196.26,2.5511]
[1735653913999,14.04960135,196.29,196.26,2.5511]
[1735653914192,3.12,196.28,196.16,43.13668712]
[1735653914499,12.48390135,196.26,196.16,43.13668712]
[1735653914698,12.48390135,196.26,196.16,27.86918243]
[1735653914885,12.48390135,196.26,196.19,2.552]
[1735653915091,12.48390135,196.26,196.16,27.86918243]
[1735653915795,12.48390135,196.26,196.15,6.97640908]
[1735653916793,3.12,196.27,196.23,2.5515]
[1735653916996,15.60390135,196.27,196.23,2.5515]
[1735653918593,3.0634,196.32,196.15,27.86918243]
[1735653918792,3.12,196.36,196.23,12.48390135]
[1735653919096,3.12,196.36,196.32,2.5503]
[1735653919496,12.48390135,196.34,196.24,2.9841]
[1735653919694,12.48390135,196.34,196.3,2.5506]
[1735653920297,7.98804986,196.31,196.3,2.5506]
[1735653920498,11.10804986,196.31,196.3,2.5506]
[1735653920902,3.1259,196.35,196.31,2.5504]
[1735653921097,3.1259,196.35,196.25,7.98804986]
[1735653921098,7.98804986,196.33,196.25,7.98804986]
[1735653921311,7.98804986,196.27,196.21,6.97640908]
[1735653921498,11.10804986,196.27,196.21,6.97640908]
[1735653922201,3.12,196.27,196.26,2.5511]
[1735653922396,3.12,196.27,196.19,27.86918243]
[1735653923005,3.12,196.27,196.19,6.97640908]
[1735653923399,3.12,196.27,196.26,2.5511]
[1735653924218,1.4627,196.32,196.2,12.48468404]
[1735653924505,3.12,196.31,196.3,2.5506]
[1735653925728,1.4627,196.32,196.3,2.5506]
[1735653926015,3.12,196.31,196.3,2.5506]
[1735653927509,3.12,196.31,196.22,6.97640908]
[1735653927900,1.4627,196.32,196.22,6.97640908]
[1735653928101,3.12,196.32,196.25,2.5513]
[1735653928305,3.12,196.32,196.22,27.86918243]
[1735653928909,3.12,196.32,196.23,10.79912717]
[1735653929109,3.12,196.32,196.3,2.5505]
[1735653929503,3.12,196.32,196.31,2.5505]
[1735653930501,3.1259,196.35,196.23,6.97640908]
[1735653930809,3.12,196.35,196.24,3.1152]
[1735653931403,3.12,196.35,196.34,2.55]
[1735653932210,3.12,196.35,196.25,6.97640908]
[1735653932803,3.12,196.35,196.31,2.5504]
[1735653933207,3.12,196.35,196.24,30.98438243]
[1735653933407,3.12,196.35,196.32,2.5503]
[1735653933615,3.12,196.35,196.24,30.98438243]
[1735653933813,3.12,196.35,196.31,2.5503]
[1735653934207,12.48468404,196.33,196.24,27.86918243]
[1735653934816,2.5504,196.32,196.28,2.5507]
[1735653935309,2.5504,196.32,196.29,2.5506]
[1735653935513,12.48468404,196.31,196.29,2.5506]
[1735653936218,3.12,196.3,196.21,6.97640908]
[1735653936406,12.48468404,196.28,196.21,6.97640908]
[1735653936909,3.12,196.3,196.21,6.97640908]
[1735653937310,3.12,196.3,196.21,19.46109312]
[1735653937513,3.12,196.3,196.29,2.5507]
[1735653938412,12.48468404,196.34,196.33,2.5501]
[1735653938413,15.60468404,196.34,196.33,2.5501]
[1735653938613,12.48468404,196.34,196.33,2.5501]
[1735653938884,3.12,196.36,196.24,12.48468404]
[1735653939014,3.12,196.36,196.25,1.5442]
[1735653939209,3.12,196.36,196.34,2.5499]
[1735653939817,3.12,196.36,196.26,3.0657]
[1735653940019,3.12,196.36,196.35,2.5499]
[1735653940626,12.48468404,196.37,196.36,2.5498]
[1735653942319,7.98238658,196.37,196.36,2.5498]
[1735653942823,7.98238658,196.37,196.29,7.98238658]
[1735653942824,7.98238658,196.37,196.31,2.5504]
[1735653943018,7.98238658,196.37,196.29,7.98238658]
[1735653943221,2.5491,196.42,196.29,7.98238658]
[1735653943419,3.12,196.42,196.37,2.5495]
[1735653943622,3.12,196.43,196.37,2.5495]
[1735653944220,2.5492,196.41,196.37,2.5495]
[1735653944419,2.5492,196.41,196.31,3.12]
[1735653944716,2.5492,196.41,196.38,2.5495]
[1735653945023,5.6689,196.43,196.4,2.5492]
[1735653945319,59.63634987,196.45,196.31,3.12]
[1735653945524,59.63634987,196.45,196.32,1.594]
[1735653945725,59.63634987,196.45,196.33,7.98238658]
[1735653945726,7.98238658,196.4,196.33,7.98238658]
[1735653946028,7.98238658,196.4,196.33,11.09658658]
[1735653946221,7.98238658,196.42,196.35,7.98238658]
[1735653946526,0.98238658,196.42,196.36,3.12]
[1735653947022,2.9961,196.54,196.36,3.12]
[1735653947216,7.98238658,196.45,196.36,3.12]
[1735653947413,7.98238658,196.45,196.38,7.98238658]
[1735653947819,7.98238658,196.45,196.44,2.5487]
[1735653948933,3.12,196.53,196.45,2.5485]
[1735653948934,2.548,196.5,196.45,2.5485]
[1735653949121,7.98238658,196.46,196.45,2.5485]
[1735653949723,7.98238658,196.46,196.37,3.12]
[1735653949925,7.98238658,196.43,196.37,3.12]
[1735653950630,7.98238658,196.43,196.42,2.549]
[1735653951522,2.5478,196.51,196.47,2.5482]
[1735653951723,2.5478,196.51,196.38,7.98238658]
[1735653951724,3.12,196.6,196.45,7.98238658]
[1735653951921,7.98238658,196.52,196.45,7.98238658]
[1735653952425,7.98238658,196.5,196.45,7.98238658]
[1735653952823,3.12,196.55,196.45,7.98238658]
[1735653953028,7.98238658,196.52,196.45,7.98238658]
[1735653954332,12.45354454,196.54,196.43,3.12]
[1735653954725,3.12,196.56,196.43,3.12]
[1735653954928,12.45354454,196.55,196.52,2.5477]
[1735653955330,12.45354454,196.55,196.43,3.12]
[1735653956025,12.45354454,196.55,196.45,12.45354454]
[1735653956226,12.45354454,196.55,196.46,1.5508]
[1735653956423,12.45354454,196.58,196.53,2.5474]
[1735653956731,12.45354454,196.58,196.48,3.12]
[1735653957028,12.45354454,196.58,196.51,2.5477]
[1735653957225,12.45354454,196.58,196.49,3.0629]
[1735653957629,12.45354454,196.58,196.56,2.5472]
[1735653957927,3.12,196.61,196.49,3.0629]
[1735653958224,3.12,196.61,196.56,2.5471]
[1735653958427,2.5467,196.6,196.49,3.0629]
[1735653958626,15.57354454,196.62,196.56,2.5472]
[1735653958822,52.98,196.82,196.55,3.12]
[1735653959030,2.5458,196.67,196.56,3.12]
[1735653959335,12.45354454,196.69,196.57,3.12]
[1735653959635,15.57354454,196.69,196.61,2.5465]
[1735653959820,15.57354454,196.69,196.55,1.5408]
[1735653960020,12.45354454,196.66,196.55,1.5408]
[1735653960220,12.45354454,196.66,196.61,2.5464]
[1735653960428,12.45354454,196.66,196.55,1.5408]
[1735653960627,12.45354454,196.66,196.57,3.12]
[1735653960821,2.5462,196.64,196.6,2.5466]
[1735653961023,12.45354454,196.66,196.6,2.5466]
[1735653961234,14.99954454,196.66,196.6,2.5466]
[1735653961429,2.546,196.66,196.61,2.5465]
[1735653961930,15.57354454,196.69,196.62,2.5464]
[1735653962234,2.5457,196.67,196.62,2.5464]
[1735653962933,2.5457,196.67,196.63,2.5462]
[1735653964336,12.45354454,196.69,196.64,2.5461]
[1735653964534,12.45354454,196.69,196.57,15.57354454]
[1735653964836,2.5457,196.67,196.62,2.5463]
[1735653965029,12.45354454,196.69,196.57,15.57354454]
[1735653965334,2.546,196.66,196.62,2.5463]
[1735653966342,2.5458,196.67,196.62,2.5463]
[1735653967034,2.5456,196.68,196.57,15.57354454]
[1735653967233,20.71226561,196.71,196.6,12.45354454]
[1735653967433,2.5455,196.69,196.63,2.5461]
[1735653967740,20.71226561,196.71,196.56,3.30723]
[1735653967741,20.71226561,196.71,196.62,12.45354454]
[1735653968040,20.71226561,196.71,196.64,2.546]
[1735653968242,20.71226561,196.71,196.65,12.45354454]
[1735653968430,20.71226561,196.71,196.62,12.45354454]
[1735653968636,23.25756561,196.71,196.66,2.5458]
[1735653969044,23.25756561,196.71,196.63,3.12]
[1735653969238,20.71226561,196.71,196.63,3.12]
[1735653969542,2.5454,196.7,196.64,2.5461]
[1735653969737,20.71226561,196.71,196.62,12.45354454]
[1735653969934,2.5458,196.67,196.58,3.12]
[1735653970139,2.5458,196.67,196.57,6.2024]
[1735653970341,2.5459,196.66,196.6,2.5466]
[1735653971043,2.5458,196.67,196.61,2.5465]
[1735653971336,3.12,196.68,196.57,4.7133]
[1735653971541,2.546,196.65,196.59,2.5467]
[1735653972333,15.57354454,196.68,196.57,1.5933]
[1735653972537,12.45354454,196.65,196.56,0.18723]
[1735653972753,12.45354454,196.62,196.56,0.18723]
[1735653972945,3.12,196.61,196.56,0.18723]
[1735653973741,2.547,196.58,196.56,0.18723]
[1735653974132,3.12,196.61,196.56,0.18723]
[1735653974347,2.547,196.57,196.56,0.18723]
[1735653974551,3.12,196.61,196.5,2.5479]
[1735653974745,12.45354454,196.59,196.49,45.1764258]
[1735653975042,12.45354454,196.59,196.49,2.5481]
[1735653975241,12.45354454,196.59,196.46,3.12]
[1735653975443,2.5476,196.53,196.45,15.57354454]
[1735653975745,3.12,196.56,196.48,2.5481]
[1735653975946,2.5476,196.53,196.48,2.5481]
[1735653976941,3.12,196.56,196.45,3.12]
[1735653977446,5.6673,196.56,196.51,2.5478]
[1735653977941,5.6673,196.56,196.49,2.5481]
[1735653977942,2.5474,196.54,196.49,2.5481]
[1735653978957,3.12,196.56,196.49,2.5481]
[1735653979952,3.12,196.56,196.5,2.5479]
[1735653980645,15.57354454,196.56,196.46,6.97640908]
[1735653980844,12.45354454,196.53,196.46,6.97640908]
[1735653981038,3.1247,196.52,196.46,6.97640908]
[1735653981240,3.12,196.51,196.46,6.97640908]
[1735653981747,3.12,196.51,196.45,27.86918243]
[1735653982142,12.45354454,196.5,196.45,27.86918243]
[1735653982543,3.1247,196.52,196.45,27.86918243]
[1735653983051,3.12,196.53,196.45,27.86918243]
[1735653983251,3.12,196.53,196.42,12.45354454]
[1735653983745,13.96764454,196.55,196.43,3.12]
[1735653983951,12.45354454,196.58,196.45,12.45354454]
[1735653984143,12.45354454,196.58,196.43,3.12]
[1735653984144,3.2178,196.59,196.48,12.45354454]
[1735653984343,3.2178,196.59,196.52,2.5477]
[1735653984646,3.2178,196.59,196.49,3.12]
[1735653984843,3.2178,196.59,196.52,2.5477]
[1735653985039,3.2178,196.59,196.49,3.12]
[1735653985439,3.2178,196.59,196.51,6.97640908]
[1735653985851,3.2178,196.59,196.54,2.5474]
[1735653986649,3.2178,196.59,196.55,2.5473]
[1735653986950,1.6158,196.59,196.52,27.86918243]
[1735653987251,17.09294454,196.64,196.52,27.86918243]
[1735653987550,13.97294454,196.64,196.55,6.97640908]
[1735653987751,1.5194,196.64,196.55,10.09640908]
[1735653987946,1.5194,196.64,196.57,2.5469]
[1735653988147,1.5194,196.64,196.55,10.09640908]
[1735653988352,1.5194,196.64,196.57,6.97640908]
[1735653988763,1.5194,196.64,196.61,2.5465]
[1735653989152,1.48,196.65,196.61,2.5465]
[1735653990050,12.45354454,196.64,196.61,2.5465]
[1735653992041,1.5764,196.69,196.57,6.97640908]
[1735653992353,33.16581015,196.71,196.57,19.42995362]
[1735653992543,12.45354454,196.68,196.57,10.09640908]
[1735653992850,15.57354454,196.68,196.57,10.09640908]
[1735653993048,15.57354454,196.68,196.65,2.546]
[1735653993249,15.57354454,196.68,196.57,10.09640908]
[1735653993650,33.16581015,196.71,196.57,22.54995362]
[1735653993939,23.83226561,196.71,196.57,22.54995362]
[1735653994141,20.71226561,196.71,196.61,6.97640908]
[1735653994345,20.71226561,196.71,196.7,2.5454]
[1735653995247,0.71226561,196.71,196.7,2.5454]
[1735654003455,190.0,197.08,196.69,15.57354454]
[1735654003659,12.45354454,196.82,196.78,2.5443]
[1735654003855,12.45354454,196.82,196.7,3.12]
[1735654004058,3.12,196.81,196.7,3.12]
[1735654004256,3.12,196.81,196.69,15.57354454]
[1735654004863,12.45354454,196.81,196.69,302.57354454]
[1735654005069,12.45354454,196.81,196.69,299.45354454]
[1735654005254,12.45354454,196.81,196.7,3.12]
[1735654005457,12.45354454,196.81,196.75,2.5446]
[1735654006062,12.45354454,196.84,196.79,2.5441]
[1735654006259,12.45354454,196.84,196.77,478.26688876]
[1735654006654,12.45354454,196.84,196.78,2.5443]
[1735654006965,12.45354454,196.84,196.79,478.26688876]
[1735654007560,12.45354454,196.81,196.79,478.26688876]
[1735654007961,12.05473915,196.8,196.79,478.26688876]
[1735654008469,12.05473915,196.8,196.79,830.98078338]
[1735654008964,12.05473915,196.8,196.79,214.56827664]
[1735654010260,16.59043915,196.83,196.76,692.8351654]
[1735654010962,16.59043915,196.83,196.79,478.26688876]
[1735654012376,16.59043915,196.83,196.79,480.81108876]
[1735654012665,12.05473915,196.83,196.79,480.81108876]
[1735654012859,12.05473915,196.83,196.8,779.07880547]
[1735654013266,12.05473915,196.83,196.8,692.8351654]
[1735654014275,12.05473915,196.83,196.8,695.3791654]
[1735654014666,12.05473915,196.86,196.8,692.8351654]
[1735654014865,12.05473915,196.86,196.82,2.5438]
[1735654015070,12.05473915,196.86,196.8,692.8351654]
[1735654015766,12.05473915,196.89,196.8,692.8351654]
[1735654016363,12.05473915,196.89,196.81,4.92892776]
[1735654016679,12.05473915,196.89,196.84,2.5435]
[1735654016970,12.05473915,196.89,196.83,478.26688876]
[1735654018474,12.05473915,196.89,196.83,480.81058876]
[1735654019676,12.05473915,196.89,196.83,478.26688876]
[1735654021472,12.05473915,196.89,196.83,305.52400789]
[1735654022878,12.05473915,196.92,196.83,478.26688876]
[1735654023291,12.05473915,196.92,196.83,768.36688876]
[1735654023483,15.15473915,196.95,196.84,291.9245489]
[1735654023679,12.05473915,196.95,196.85,478.26688876]
[1735654023873,15.15473915,196.95,196.88,2.543]
[1735654024183,12.05473915,196.95,196.85,478.26688876]
[1735654024484,12.05473915,196.92,196.88,478.26688876]
[1735654024983,12.05473915,196.92,196.89,540.41393263]
[1735654025383,12.05473915,196.92,196.87,478.26688876]
[1735654026186,12.05473915,196.89,196.86,478.26688876]
[1735654026684,12.05473915,196.91,196.84,478.26688876]
[1735654027186,12.05473915,196.91,196.86,2.5433]
[1735654027377,12.05473915,196.91,196.85,4.92441987]
[1735654027575,12.05473915,196.91,196.87,478.26688876]
[1735654027778,12.05473915,196.91,196.88,2.543]
[1735654027978,12.05473915,196.91,196.88,539.60075652]
[1735654028184,12.05473915,196.91,196.89,4.92441987]
[1735654028383,12.05473915,196.94,196.9,4.92441987]
[1735654028781,12.05473915,196.94,196.91,4.92441987]
[1735654029174,12.05473915,196.94,196.88,478.26688876]
[1735654029682,12.05473915,196.94,196.89,4.93511293]
[1735654030292,12.05473915,196.94,196.9,4.93511293]
[1735654030688,12.05473915,196.94,196.91,4.93511293]
[1735654031079,12.05473915,196.94,196.92,4.93511293]
[1735654031485,12.05473915,196.94,196.93,4.93511293]
[1735654035206,12.05473915,196.94,196.89,692.8351654]
[1735654035987,12.05473915,196.94,196.89,387.31115751]
[1735654036192,12.05473915,196.91,196.89,214.56827664]
[1735654037591,15.15473915,196.91,196.89,90.0262254]
[1735654038091,15.15473915,196.91,196.89,85.09111247]
[1735654038602,3.1,196.91,196.85,27.86918243]
[1735654039092,3.1,196.91,196.86,7.8366754]
[1735654039292,12.05473915,196.92,196.86,7.8366754]
[1735654039502,12.05473915,196.92,196.87,7.8366754]
[1735654039689,12.05473915,196.92,196.88,2.543]
[1735654039892,12.05473915,196.92,196.89,7.8366754]
[1735654040291,12.05473915,196.92,196.88,11.57323381]
[1735654040592,12.05473915,196.92,196.89,6.97640908]
[1735654040802,12.05473915,196.92,196.9,7.834468]
[1735654041188,12.05473915,196.95,196.89,6.97640908]
[1735654041589,12.05473915,196.95,196.88,2.543]
[1735654041794,12.05473915,196.95,196.86,2.9675]
[1735654041990,12.05473915,196.92,196.89,7.83475227]
[1735654042594,12.05473915,196.92,196.86,289.9675]
[1735654042885,12.05473915,196.92,196.87,6.90309483]
[1735654043291,12.05473915,196.92,196.88,7.83554613]
[1735654043689,12.05473915,196.92,196.88,4.59544793]
[1735654044495,12.05473915,196.92,196.89,4.59544793]
[1735654044992,12.05473915,196.92,196.88,6.90309483]
[1735654045297,12.05473915,196.92,196.87,20.7092845]
[1735654045298,12.05473915,196.89,196.85,6.90309483]
[1735654046896,12.05473915,196.86,196.85,6.90309483]
[1735654047203,12.05473915,196.86,196.84,6.90309483]
[1735654047505,12.05473915,196.86,196.85,4.89903337]
[1735654047701,12.05473915,196.86,196.83,20.7092845]
[1735654047902,3.1,196.85,196.81,341.31579418]
[1735654048199,12.05473915,196.82,196.81,341.31579418]
[1735654048397,12.05473915,196.82,196.8,20.73302181]
[1735654049301,12.05473915,196.82,196.77,4.1579]
[1735654050396,12.05473915,196.82,196.77,1.6134]
[1735654052298,12.05473915,196.79,196.74,3.0751]
[1735654054402,12.05473915,196.79,196.73,2.5449]
[1735654055499,12.05473915,196.79,196.72,2.5451]
[1735654055701,12.05473915,196.79,196.71,2.33821743]
[1735654055903,12.05473915,196.76,196.7,3.0179]
[1735654056498,12.05473915,196.76,196.7,5.5632]
[1735654056697,12.05473915,196.76,196.67,287.0]
[1735654056901,3.1,196.75,196.67,287.0]
[1735654058704,3.1,196.75,196.69,2.5454]
[1735654059111,12.05473915,196.73,196.69,2.5454]
[1735654059297,12.05473915,196.73,196.67,289.5457]
[1735654059497,12.05473915,196.73,196.67,2.5457]
[1735654059904,12.05473915,196.73,196.68,4.84314819]
[1735654060305,12.05473915,196.73,196.66,7.2172]
[1735654060706,12.05473915,196.73,196.67,2.5457]
[1735654060903,12.05473915,196.73,196.67,7.38550154]
[1735654061107,12.05473915,196.73,196.67,4.83980154]
[1735654061508,12.05473915,196.73,196.66,4.6713]
[1735654061808,12.05473915,196.73,196.68,2.5456]
[1735654062102,12.05473915,196.73,196.66,4.6713]
[1735654062307,12.05473915,196.7,196.66,4.6713]
[1735654062831,12.05473915,196.7,196.66,5.6284]
[1735654063206,12.05473915,196.7,196.66,3.0826]
[1735654063608,12.05473915,196.7,196.68,2.5455]
[1735654063808,12.05473915,196.7,196.66,3.0826]
[1735654064008,12.05473915,196.73,196.66,3.0826]
[1735654064206,12.05473915,196.73,196.71,2.5452]
[1735654064908,3.1,196.75,196.72,2.5451]
[1735654065111,3.1,196.75,196.66,3.0826]
[1735654065311,3.1,196.75,196.7,2.5453]
[1735654065512,3.1,196.75,196.66,290.0826]
[1735654065812,3.1,196.75,196.7,2.5453]
[1735654066210,12.06180235,196.74,196.7,2.5453]
[1735654067112,12.06180235,196.74,196.71,2.5452]
[1735654067308,3.1,196.75,196.66,290.0826]
[1735654067529,7.74054619,196.69,196.66,290.0826]
[1735654067831,7.74054619,196.69,196.67,7.37967593]
[1735654067918,7.74054619,196.69,196.67,4.83407593]
[1735654068217,7.74054619,196.69,196.66,3.0826]
[1735654068507,7.74054619,196.67,196.66,3.0826]
[1735654069115,7.74054619,196.67,196.66,5.6285]
[1735654071210,4.6297,196.79,196.69,2.5455]
[1735654071407,7.74054619,196.7,196.69,2.5455]
[1735654073209,7.74054619,196.72,196.66,3.0826]
[1735654073415,7.74054619,196.72,196.71,2.5451]
[1735654074613,7.74054619,196.72,196.69,2.5455]
[1735654074814,7.74054619,196.7,196.69,2.5455]
[1735654076513,7.74054619,196.72,196.71,2.5452]
[1735654076714,7.74054619,196.72,196.66,290.0826]
[1735654077018,7.74054619,196.72,196.67,4.82294808]
[1735654077618,7.74054619,196.72,196.7,2.5453]
[1735654080523,7.74054619,196.72,196.71,2.5452]
[1735654082020,7.74054619,196.72,196.67,20.66884218]
[1735654082426,7.74054619,196.72,196.68,4.83058641]
[1735654082718,7.74054619,196.72,196.71,2.5452]
[1735654083422,7.74054619,196.72,196.68,4.45646386]
[1735654083729,7.74054619,196.7,196.69,2.5454]
[1735654086424,64.52831328,196.8,196.67,7.74054619]
[1735654086722,7.74054619,196.76,196.69,7.74054619]
[1735654087216,7.74054619,196.72,196.7,104.33795005]
[1735654087674,7.74054619,196.72,196.71,4.83689381]
[1735654088222,7.74054619,196.72,196.71,9.30172939]
[1735654088417,3.12,196.77,196.71,9.30172939]
[1735654088627,3.12,196.77,196.72,2.5451]
[1735654089227,3.12,196.77,196.72,7.00993558]
[1735654089823,3.12,196.77,196.72,4.46483558]
[1735654090015,7.74054619,196.73,196.72,7.00993558]
[1735654090219,7.74054619,196.73,196.72,7.39249275]
[1735654091129,3.1,196.78,196.73,2.545]
[1735654091327,7.74054619,196.74,196.73,2.545]
[1735654091517,7.74054619,196.74,196.73,7.39239275]
[1735654092524,64.52831328,196.8,196.73,4.84739275]
[1735654092722,7.74054619,196.77,196.74,4.84739275]
[1735654093223,3.85709238,196.78,196.75,291.84739275]
[1735654093525,7.74054619,196.8,196.76,4.84739275]
[1735654093731,7.74054619,196.8,196.79,2.5442]
[1735654094131,7.74054619,196.8,196.79,7.39159275]
[1735654094729,7.74054619,196.8,196.79,4.84739275]
[1735654096430,7.74054619,196.8,196.79,7.39149275]
[1735654098128,7.74054619,196.8,196.79,4.84739275]
[1735654099337,3.1,196.84,196.79,7.39149275]
[1735654099636,7.74054619,196.8,196.75,287.0]
[1735654099834,7.74054619,196.8,196.76,4.85408437]
[1735654100034,3.1,196.84,196.82,2.5437]
[1735654100330,3.1,196.86,196.77,291.85408437]
[1735654100535,3.1,196.86,196.83,2.5436]
[1735654101536,3.1,196.86,196.77,287.0]
[1735654101733,7.74054619,196.82,196.77,287.0]
[1735654102335,7.74054619,196.82,196.78,4.84961182]
[1735654102637,1.5527,196.89,196.79,4.84961182]
[1735654102831,7.74054619,196.86,196.8,4.84961182]
[1735654103134,7.74054619,196.86,196.81,4.84961182]
[1735654103336,7.74054619,196.84,196.82,4.84961182]
[1735654103836,7.74054619,196.84,196.83,7.39331182]
[1735654104837,7.74054619,196.84,196.83,4.84961182]
[1735654105232,3.1237,196.95,196.83,4.84961182]
[1735654105535,7.74054619,196.84,196.78,288.5492]
[1735654105734,7.74054619,196.84,196.8,2.544]
[1735654106033,7.74054619,196.82,196.81,4.84090875]
[1735654106333,7.74054619,196.82,196.78,287.0]
[1735654106727,7.74054619,196.82,196.79,4.84156682]
[1735654107030,7.74054619,196.82,196.8,4.84156682]
[1735654107438,7.74054619,196.82,196.8,2.544]
[1735654108540,7.74054619,196.86,196.78,294.74054619]
[1735654109043,7.74054619,196.86,196.79,4.83856515]
[1735654109239,7.74054619,196.86,196.79,7.93856515]
[1735654109438,7.74054619,196.86,196.85,2.5434]
[1735654110536,7.74054619,196.86,196.84,2.5435]
[1735654112342,7.74054619,196.86,196.85,2.5434]
[1735654112838,7.74054619,196.86,196.84,2.5435]
[1735654113039,7.74054619,196.86,196.8,288.5512]
[1735654113637,7.74054619,196.86,196.82,2.5438]
[1735654113840,7.74054619,196.86,196.81,4.83675917]
[1735654114140,7.74054619,196.86,196.8,288.5512]
[1735654114343,7.74054619,196.86,196.82,4.83795512]
[1735654114533,7.74054619,196.86,196.8,1.5512]
[1735654114939,7.74054619,196.86,196.83,2.5436]
[1735654115743,7.74054619,196.86,196.8,1.5512]
[1735654115953,7.74054619,196.86,196.84,2.5436]
[1735654117247,1.5508,196.94,196.8,288.5512]
[1735654117549,7.74054619,196.92,196.86,2.5432]
[1735654118543,7.74054619,196.87,196.86,2.5432]
[1735654119238,7.74054619,196.92,196.86,2.5432]
[1735654119445,3.1,196.93,196.91,2.5426]
[1735654119641,7.74054619,196.92,196.91,2.5426]
[1735654120438,3.1,196.94,196.84,3.1]
[1735654120737,67.59607027,196.96,196.93,2.5424]
[1735654120936,7.74054619,196.94,196.93,2.5424]
[1735654122649,64.49607027,196.96,196.95,2.5422]
[1735654122847,7.74054619,196.96,196.86,294.74054619]
[1735654123042,7.74054619,196.91,196.86,287.0]
[1735654123439,7.74054619,196.91,196.87,4.82923389]
[1735654123843,7.74054619,196.91,196.86,287.0]
[1735654124445,7.74054619,196.89,196.86,287.0]
[1735654124644,3.1,196.93,196.87,4.82764547]
[1735654124843,3.1,196.93,196.84,314.70423867]
[1735654125046,7.74054619,196.86,196.85,2.5435]
[1735654125543,7.74054619,196.86,196.85,7.37128661]
[1735654126343,7.74054619,196.87,196.85,4.82778661]
[1735654126545,7.74054619,196.87,196.86,2.5433]
[1735654128660,7.74054619,196.92,196.86,2.5433]
[1735654129353,7.74054619,196.88,196.82,314.70423867]
[1735654129571,7.74054619,196.84,196.82,27.70423867]
[1735654129861,7.74054619,196.84,196.83,27.70423867]
[1735654130957,7.74054619,196.84,196.81,3.83842322]
[1735654131667,12.32314619,196.92,196.8,6.89798901]
[1735654131668,7.74054619,196.82,196.8,6.89798901]
[1735654131856,3.1,196.81,196.78,43.60075866]
[1735654132065,7.74054619,196.79,196.78,43.60075866]
[1735654132260,7.74054619,196.79,196.76,82.837138]
[1735654132579,7.74054619,196.77,196.76,82.837138]
[1735654132758,7.74054619,196.77,196.72,2.5453]
[1735654132958,7.74054619,196.73,196.72,2.5453]
[1735654133264,7.74054619,196.73,196.72,7.39415562]
[1735654133660,7.74054619,196.73,196.72,4.84885562]
[1735654134166,7.74054619,196.73,196.67,3.1313]
[1735654134560,7.74054619,196.73,196.68,4.85171318]
[1735654134957,7.74054619,196.73,196.69,4.85171318]
[1735654135459,7.74054619,196.75,196.7,4.85171318]
[1735654135966,7.74054619,196.75,196.71,4.85171318]
[1735654136161,63.73853564,196.82,196.71,4.85171318]
[1735654136362,7.74054619,196.78,196.72,4.85171318]
[1735654136856,7.74054619,196.78,196.76,2.5446]
[1735654137259,7.74054619,196.78,196.76,2.5447]
[1735654137562,7.74054619,196.78,196.7,294.74054619]
[1735654137763,7.74054619,196.78,196.76,2.5447]
[1735654138364,7.74054619,196.78,196.7,294.74054619]
[1735654138560,7.74054619,196.78,196.71,1.5217]